bitfinex-derivatives/quotes_SOLF0:USTF0_20250523
["timestamp","ask_amount","ask_price","bid_price","bid_amount"]
[1748005550998,5.6566,176.73,176.72,0.03657566]
[1748005551595,5.6575,176.7,176.69,147.44]
[1748005551796,0.03692322,176.74,176.69,147.44]
[1748005552392,0.03692322,176.74,176.7,1.99982886]
[1748005552601,0.03692322,176.74,176.7,0.04098641]
[1748005552796,0.03692322,176.74,176.71,147.4]
[1748005552996,0.03692322,176.74,176.7,0.04098641]
[1748005553300,5.69692322,176.74,176.61,636.6]
[1748005553502,1.8526,176.73,176.62,4.61209562]
[1748005553700,5.6595,176.64,176.62,4.61209562]
[1748005554097,0.03616094,176.65,176.62,4.61209562]
[1748005554306,0.03835501,176.65,176.62,4.65474604]
[1748005554813,0.03835501,176.65,176.63,5.6595]
[1748005555010,0.03835501,176.65,176.62,4.65474604]
[1748005555306,5.501e-05,176.65,176.64,5.6594]
[1748005555514,5.6563,176.74,176.62,29.08775706]
[1748005555706,1.8526,176.78,176.7,5.6573]
[1748005556003,1.8526,176.78,176.71,147.4]
[1748005556202,181.13584755,176.88,176.72,147.4]
[1748005556400,1.8741,176.87,176.72,147.4]
[1748005556608,0.03579593,176.77,176.74,0.04330464]
[1748005557405,0.03579593,176.77,176.76,5.6556]
[1748005557910,0.03579593,176.77,176.75,147.38]
[1748005558503,5.6556,176.76,176.75,147.38]
[1748005558702,0.03579593,176.77,176.74,143.84330464]
[1748005558904,5.6559,176.75,176.74,143.84330464]
[1748005559606,5.658,176.69,176.63,2.0284]
[1748005559812,5.658,176.69,176.64,251.34]
[1748005560003,3.8975,176.76,176.64,251.34]
[1748005560312,1.8421,176.75,176.64,251.34]
[1748005560610,0.03992161,176.71,176.68,0.03632434]
[1748005560910,22.47216916,176.71,176.57,143.78]
[1748005561107,143.78,176.72,176.56,4.61209562]
[1748005561108,22.43224755,176.67,176.56,4.61209562]
[1748005561413,147.6775,176.66,176.56,4.61209562]
[1748005561711,0.04053557,176.63,176.59,0.02373892]
[1748005562010,0.04053557,176.63,176.56,4.61209562]
[1748005562520,0.04053557,176.63,176.52,143.78]
[1748005562700,147.6775,176.66,176.52,143.78]
[1748005562907,0.03759431,176.61,176.52,143.78]
[1748005563205,5.6608,176.6,176.55,5.6622]
[1748005563611,0.03759431,176.61,176.52,143.78]
[1748005563809,5.6625,176.55,176.48,143.8]
[1748005564008,0.04170005,176.53,176.44,143.8]
[1748005564311,5.664,176.5,176.44,143.8]
[1748005564515,0.04319276,176.49,176.44,143.8]
[1748005564911,0.04319276,176.49,176.48,5.6646]
[1748005565212,0.04319276,176.49,176.44,143.8]
[1748005565409,0.04319276,176.49,176.45,5.6655]
[1748005565608,0.04319276,176.49,176.44,143.8]
[1748005567015,0.04319276,176.49,176.48,5.6646]
[1748005567213,0.04319276,176.49,176.44,143.8]
[1748005567911,0.04319276,176.49,176.48,5.6646]
[1748005568411,0.04319276,176.49,176.44,143.8]
[1748005570025,5.6646,176.48,176.44,143.8]
[1748005570315,9.276e-05,176.49,176.48,5.6646]
[1748005570515,5.6608,176.6,176.48,22.43224755]
[1748005570723,1.8661,176.62,176.49,143.88]
[1748005570724,5.22831709,176.61,176.49,143.88]
[1748005570913,5.22831709,176.61,176.5,107.6]
[1748005571219,5.22831709,176.61,176.54,5.6626]
[1748005571523,0.03875081,176.59,176.56,0.04123866]
[1748005571814,6.90190326,176.64,176.63,5.6598]
[1748005572019,6.90190326,176.64,176.63,257.1398]
[1748005572922,10.23799309,176.66,176.63,257.1398]
[1748005572923,10.23799309,176.66,176.65,5.6591]
[1748005573219,17.10316773,176.79,176.65,22.43224755]
[1748005573519,5.7183,176.78,176.65,22.43224755]
[1748005573919,0.04006011,176.73,176.7,0.03924215]
[1748005574726,5.6572,176.71,176.7,0.03924215]
[1748005574920,0.04006011,176.73,176.63,489.26]
[1748005575128,5.6581,176.69,176.63,638.7597]
[1748005575323,143.88,176.77,176.63,633.1]
[1748005576127,0.03909714,176.72,176.68,0.03909365]
[1748005576429,0.03909714,176.72,176.68,143.87909365]
[1748005577435,5.6578,176.69,176.68,143.87909365]
[1748005577618,0.03909714,176.72,176.64,143.84]
[1748005577824,143.84,176.74,176.64,143.84]
[1748005578118,5.7183,176.78,176.64,143.84]
[1748005578429,5.6576,176.7,176.65,5.6588]
[1748005578629,0.0407515,176.69,176.66,0.0424274]
[1748005578928,0.04255205,176.69,176.66,0.04058831]
[1748005579127,0.04255205,176.69,176.67,107.56]
[1748005579526,5.6585,176.67,176.66,0.04058831]
[1748005579927,0.04255205,176.69,176.64,143.82]
[1748005580128,5.6591,176.65,176.64,143.82]
[1748005580531,0.04255205,176.69,176.61,107.56]
[1748005580731,143.82,176.73,176.61,107.56]
[1748005580933,0.03673984,176.69,176.61,107.56]
[1748005581133,5.6599,176.63,176.61,107.56]
[1748005581435,0.03823493,176.64,176.61,107.56]
[1748005581636,0.0426931,176.64,176.61,107.56]
[1748005582031,0.0426931,176.64,176.54,489.08]
[1748005582239,5.6613,176.59,176.55,251.38]
[1748005582538,5.70024972,176.59,176.55,251.38]
[1748005583037,5.70024972,176.59,176.55,257.0421]
[1748005583336,0.03894972,176.59,176.55,251.38]
[1748005583932,0.03894972,176.59,176.54,489.08]
[1748005584135,0.03894972,176.59,176.55,143.82]
[1748005584335,5.662,176.56,176.55,143.82]
[1748005584938,5.6616,176.58,176.55,143.82]
[1748005585444,0.03894972,176.59,176.55,143.82]
[1748005585942,0.03894972,176.59,176.56,5.6619]
[1748005586143,0.03894972,176.59,176.55,166.25224755]
[1748005586534,0.03894972,176.59,176.55,143.82]
[1748005587134,5.662,176.56,176.55,143.82]
[1748005588445,0.03894972,176.59,176.51,143.82]
[1748005588637,0.04012012,176.57,176.51,143.82]
[1748005589038,5.6633,176.52,176.51,143.82]
[1748005589446,5.66,176.52,176.34,498.62965328]
[1748005589743,0.03713045,176.47,176.39,147.23209562]
[1748005590141,22.43224755,176.46,176.35,142.62]
[1748005590344,0.04347371,176.43,176.34,498.62965328]
[1748005590940,0.04347371,176.43,176.34,504.29845328]
[1748005591144,0.04347371,176.43,176.34,498.62965328]
[1748005591737,0.04347371,176.43,176.34,9.50965328]
[1748005592344,0.04347371,176.43,176.32,142.66]
[1748005592639,0.04359003,176.39,176.32,142.66]
[1748005593742,0.04359003,176.39,176.38,5.6678]
[1748005593949,0.04359003,176.39,176.32,142.66]
[1748005594451,22.43224755,176.57,176.35,22.43224755]
[1748005594749,142.7,176.57,176.43,22.43224755]
[1748005594946,142.7,176.57,176.44,250.32]
[1748005595341,1.961,176.56,176.49,0.03620366]
[1748005595546,0.04073521,176.52,176.49,0.03620366]
[1748005595750,0.04073521,176.52,176.49,142.73620366]
[1748005596856,142.7,176.63,176.49,142.73620366]
[1748005596857,142.72,176.67,176.51,22.43224755]
[1748005597150,142.72,176.67,176.52,107.64]
[1748005597151,1.9382,176.65,176.52,107.64]
[1748005597744,0.04238933,176.6,176.57,0.03750429]
[1748005598253,5.6614,176.58,176.57,0.03750429]
[1748005598443,0.04238933,176.6,176.45,22.43224755]
[1748005598639,5.6636,176.52,176.5,107.64]
[1748005598851,142.72,176.61,176.5,107.64]
[1748005599249,5.6639,176.51,176.48,142.72]
[1748005599449,0.03862832,176.51,176.48,142.75692265]
[1748005599748,5.6604,176.61,176.55,5.662]
[1748005600046,1.9382,176.65,176.56,250.32]
[1748005600247,5.6614,176.58,176.57,142.7]
[1748005600452,1.9382,176.65,176.57,142.7]
[1748005600947,5.6607,176.6,176.59,0.03688861]
[1748005601349,5.6605,176.61,176.59,0.03688861]
[1748005601551,0.03852411,176.63,176.59,0.03688861]
[1748005602046,5.6607,176.6,176.59,0.03688861]
[1748005604045,0.03852411,176.63,176.51,142.68]
[1748005604246,1.9382,176.65,176.51,142.68]
[1748005604553,5.6626,176.55,176.51,142.68]
[1748005604949,5.70237656,176.55,176.51,142.7195926]
[1748005605153,0.03977656,176.55,176.51,142.7195926]
[1748005605345,0.03977656,176.55,176.52,1.5026]
[1748005605857,0.03977656,176.55,176.52,142.68]
[1748005606241,5.663,176.53,176.52,142.68]
[1748005607157,5.6633,176.52,176.51,0.0395926]
[1748005607653,0.03977656,176.55,176.51,0.0395926]
[1748005609059,5.6628,176.54,176.51,0.0395926]
[1748005609456,0.03977656,176.55,176.51,0.0395926]
[1748005609850,5.6633,176.52,176.51,0.0395926]
[1748005611157,5.6633,176.52,176.51,9.26e-05]
[1748005612761,11.3233,176.52,176.51,9.26e-05]
[1748005613657,5.6633,176.52,176.51,9.26e-05]
[1748005614460,0.03977656,176.55,176.51,107.6200926]
[1748005614860,5.70237656,176.55,176.51,107.6200926]
[1748005615255,5.70237656,176.55,176.51,113.2836926]
[1748005615459,0.03977656,176.55,176.51,107.6200926]
[1748005615653,0.03977656,176.55,176.52,250.36]
[1748005616052,0.03977656,176.55,176.51,9.26e-05]
[1748005616560,0.03977656,176.55,176.51,250.3600926]
[1748005617466,0.03977656,176.55,176.53,5.6627]
[1748005617666,0.03977656,176.55,176.51,250.3600926]
[1748005617867,0.03977656,176.55,176.52,250.36]
[1748005618557,0.03977656,176.55,176.54,5.6626]
[1748005619464,5.661,176.6,176.56,5.6619]
[1748005619654,5.661,176.6,176.57,142.14]
[1748005620168,1.9613,176.63,176.57,142.14]
[1748005620169,5.6611,176.59,176.57,142.14]
[1748005620463,0.04127907,176.6,176.57,142.14]
[1748005621562,0.04127907,176.6,176.56,0.04170428]
[1748005621759,0.04127907,176.6,176.56,107.66170428]
[1748005622258,0.04127907,176.6,176.56,0.04170428]
[1748005622754,1.8929,176.7,176.56,0.04170428]
[1748005622958,1.8929,176.7,176.63,5.6595]
[1748005623165,1.8929,176.7,176.64,107.62]
[1748005623566,1.8929,176.7,176.55,1.5031]
[1748005623758,1.8929,176.7,176.6,107.62]
[1748005623954,5.6601,176.62,176.61,0.03988338]
[1748005624160,0.03777669,176.64,176.5,22.43224755]
[1748005624367,142.12,176.66,176.51,249.74]
[1748005624566,3.9037,176.65,176.51,249.74]
[1748005624760,3.9037,176.65,176.47,22.43224755]
[1748005624968,5.6633,176.53,176.5,249.74]
[1748005625167,3.9037,176.65,176.5,249.74]
[1748005625665,5.6618,176.57,176.56,0.0387949]
[1748005625867,0.04272173,176.59,176.56,0.0387949]
[1748005626172,5.6617,176.57,176.56,0.0387949]
[1748005626369,5.6617,176.57,176.56,9.49e-05]
[1748005627764,0.04272173,176.59,176.56,9.49e-05]
[1748005627966,0.04272173,176.59,176.56,142.1200949]
[1748005628267,5.6617,176.57,176.56,9.49e-05]
[1748005628867,0.04272173,176.59,176.56,9.49e-05]
[1748005629172,0.04272173,176.59,176.56,107.6200949]
[1748005629672,0.04272173,176.59,176.56,9.49e-05]
[1748005629871,5.6617,176.57,176.56,9.49e-05]
[1748005630062,0.04272173,176.59,176.56,9.49e-05]
[1748005630564,5.6614,176.58,176.56,9.49e-05]
[1748005630765,0.04272173,176.59,176.56,9.49e-05]
[1748005631069,5.6617,176.57,176.56,9.49e-05]
[1748005632670,0.04272173,176.59,176.56,113.2800949]
[1748005632969,0.04272173,176.59,176.56,107.6200949]
[1748005633765,6.96484906,176.7,176.61,22.43578152]
[1748005633974,6.96484906,176.74,176.62,631.48]
[1748005634171,5.6566,176.73,176.65,22.43578152]
[1748005634374,6.96484906,176.74,176.65,22.43578152]
[1748005634575,0.0389878,176.71,176.7,5.6575]
[1748005634768,6.96484906,176.74,176.7,249.74]
[1748005635272,5.6569,176.72,176.68,0.03880067]
[1748005635477,6.96484906,176.74,176.69,249.7]
[1748005635782,0.04031338,176.73,176.69,249.7]
[1748005636077,0.04031338,176.73,176.68,0.03880067]
[1748005637580,0.04031338,176.73,176.69,249.66]
[1748005637779,0.04031338,176.73,176.68,0.03880067]
[1748005637979,5.6578,176.69,176.68,142.11880067]
[1748005638181,0.04031338,176.73,176.68,142.11880067]
[1748005639183,5.6578,176.69,176.68,142.11880067]
[1748005639481,0.04031338,176.73,176.68,142.11880067]
[1748005639681,5.6578,176.69,176.68,142.11880067]
[1748005640280,5.6578,176.69,176.68,0.03880067]
[1748005640884,5.6598,176.63,176.62,631.42]
[1748005641084,5.6598,176.63,176.62,142.06]
[1748005641381,5.6604,176.61,176.6,107.56]
[1748005641987,5.6607,176.6,176.59,0.04238765]
[1748005642289,0.04350129,176.61,176.58,0.04269488]
[1748005642480,5.6611,176.59,176.58,0.04269488]
[1748005644083,0.04206812,176.61,176.58,0.04269488]
[1748005644281,144.0352,176.72,176.62,5.66]
[1748005644583,1.9752,176.72,176.53,489.06]
[1748005644887,1.9752,176.72,176.54,251.62871432]
[1748005645089,1.9752,176.72,176.6,5.6604]
[1748005645289,1.9752,176.72,176.61,142.06]
[1748005645583,0.03828811,176.68,176.64,0.0392074]
[1748005645785,0.03828811,176.68,176.53,489.06]
[1748005645986,22.43578152,176.69,176.57,142.06]
[1748005646188,5.6614,176.58,176.57,142.06]
[1748005646683,11.3162,176.69,176.57,142.06]
[1748005646984,109.5352,176.72,176.61,0.04292803]
[1748005646985,0.0434249,176.65,176.61,0.04292803]
[1748005647181,5.6601,176.62,176.61,0.04264964]
[1748005647690,0.0434249,176.65,176.61,0.04264964]
[1748005647691,5.6599,176.63,176.61,0.04264964]
[1748005647889,0.0434249,176.65,176.61,0.04264964]
[1748005648085,0.0434249,176.65,176.56,142.06]
[1748005648391,142.06,176.65,176.56,142.06]
[1748005648585,1.9455,176.64,176.56,142.06]
[1748005648790,142.06,176.7,176.58,5.6613]
[1748005649089,0.03816806,176.66,176.56,142.06]
[1748005649982,5.6617,176.57,176.53,489.06]
[1748005650187,0.03808331,176.57,176.53,489.06]
[1748005650386,5.6627,176.54,176.53,489.06]
[1748005650590,0.03808331,176.57,176.53,489.06]
[1748005651090,0.03808331,176.57,176.52,141.98]
[1748005651287,0.03808331,176.57,176.47,141.98]
[1748005651893,5.6646,176.48,176.47,141.98]
[1748005652285,0.03870301,176.49,176.44,4.91952519]
[1748005653492,5.6655,176.45,176.44,4.91952519]
[1748005653690,1.8686,176.48,176.39,9.50965328]
[1748005653890,0.04315743,176.47,176.39,9.50965328]
[1748005654292,0.04315743,176.47,176.46,5.6652]
[1748005654693,1.8922,176.56,176.43,142.02]
[1748005654990,7.5544,176.56,176.44,1.4256]
[1748005655182,5.6622,176.56,176.45,22.43578152]
[1748005655386,6.96484906,176.57,176.49,22.43578152]
[1748005655589,6.96484906,176.57,176.5,249.62]
[1748005655797,0.03608511,176.55,176.51,0.03917503]
[1748005656095,5.6628,176.54,176.51,0.03917503]
[1748005656292,0.03608511,176.55,176.51,0.03917503]
[1748005656598,5.6633,176.52,176.51,0.03917503]
[1748005656894,0.03608511,176.55,176.51,0.03917503]
[1748005657095,5.6633,176.52,176.51,0.03917503]
[1748005657490,0.03608511,176.55,176.45,142.02]
[1748005657692,142.02,176.56,176.45,142.02]
[1748005658293,142.02,176.56,176.44,489.28]
[1748005658294,22.43578152,176.54,176.42,107.6]
[1748005658491,0.03699713,176.5,176.46,0.02366326]
[1748005658686,5.6649,176.47,176.46,0.02366326]
[1748005659196,5.6649,176.47,176.46,6.326e-05]
[1748005660398,5.66,176.47,176.31,143.9883]
[1748005660694,22.43578152,176.44,176.27,142.04]
[1748005660894,5.6694,176.33,176.27,142.04]
[1748005661497,5.6717,176.26,176.25,12.73881894]
[1748005661697,0.04243436,176.27,176.25,12.73881894]
[1748005661902,0.04024324,176.28,176.25,12.73881894]
[1748005662092,5.6717,176.26,176.25,12.73881894]
[1748005662291,0.04024324,176.28,176.21,142.04]
[1748005662493,0.04024324,176.28,176.18,1.9483]
[1748005662494,0.04024324,176.28,176.18,109.5683]
[1748005662692,142.14024324,176.28,176.18,109.5683]
[1748005662999,142.14024324,176.28,176.16,6.57319033]
[1748005663203,0.03606588,176.24,176.16,6.57319033]
[1748005664806,142.1,176.23,176.16,6.57319033]
[1748005665209,0.03606588,176.24,176.16,6.57319033]
[1748005665397,0.03606588,176.24,176.16,29.00897185]
[1748005665600,0.03606588,176.24,176.17,5.6743]
[1748005665800,0.03606588,176.24,176.18,142.16]
[1748005667107,0.03606588,176.24,176.14,2.0294]
[1748005667312,0.03606588,176.24,176.15,249.88]
[1748005667606,0.03606588,176.24,176.12,2.041]
[1748005667803,0.04155592,176.2,176.07,142.16]
[1748005667995,0.04228075,176.15,176.07,5.6777]
[1748005668196,0.04228075,176.15,176.02,142.16]
[1748005668197,5.6764,176.12,176.02,249.88]
[1748005668400,0.04091629,176.09,176.02,249.88]
[1748005669013,0.04091629,176.09,176.06,5.6779]
[1748005669203,0.04091629,176.09,176.02,249.88]
[1748005669406,0.04091629,176.09,176.02,142.16]
[1748005669602,0.04091629,176.09,176.03,107.74]
[1748005670109,0.04091629,176.09,176.03,113.4188]
[1748005670310,0.04091629,176.09,176.02,142.16]
[1748005671813,0.04091629,176.09,176.01,1.9446]
[1748005672807,5.6779,176.07,176.02,5.6792]
[1748005673005,0.04091629,176.09,176.02,5.6792]
[1748005673508,0.04091629,176.09,176.01,115.4243]
[1748005673713,0.04091629,176.09,176.01,109.7446]
[1748005674014,5.6783,176.06,176.01,109.7446]
[1748005674209,0.04189076,176.05,176.01,109.7446]
[1748005674400,0.0393449,176.05,176.01,109.7446]
[1748005674601,142.32,176.17,176.01,109.7446]
[1748005675100,5.677,176.1,176.05,5.6782]
[1748005675315,5.677,176.1,176.05,147.9982]
[1748005675518,0.03690042,176.09,176.07,5.6777]
[1748005675808,0.04151788,176.1,176.06,0.03886408]
[1748005676008,142.32,176.17,176.06,0.0393449]
[1748005676215,5.9085,176.2,176.05,142.32]
[1748005676403,5.9085,176.2,176.06,1.883]
[1748005676716,142.32,176.23,176.08,22.43578152]
[1748005677212,0.03575527,176.17,176.14,5.71121604]
[1748005677412,0.03575527,176.17,176.14,148.03121604]
[1748005677600,0.03575527,176.17,176.14,142.35581604]
[1748005678208,5.6749,176.16,176.14,142.35581604]
[1748005678413,0.03575527,176.17,176.14,0.03581604]
[1748005678714,5.6752,176.15,176.14,0.03581604]
[1748005680517,5.6752,176.15,176.14,1.604e-05]
[1748005680700,11.3552,176.15,176.14,1.604e-05]
[1748005681005,5.68,176.15,176.01,1.9446]
[1748005681207,1.8738,176.14,176.01,1.9446]
[1748005681414,1.8738,176.14,176.03,5.679]
[1748005681605,1.8738,176.14,176.01,1.9446]
[1748005681908,0.04006678,176.09,176.06,0.0416887]
[1748005682412,0.04006678,176.09,176.06,5.7195887]
[1748005682612,0.04006678,176.09,176.06,0.0416887]
[1748005684109,22.43578152,176.25,176.07,22.43578152]
[1748005684306,142.24,176.24,176.07,22.43578152]
[1748005684500,142.24,176.27,176.11,22.43578152]
[1748005684710,142.24,176.27,176.12,146.0331]
[1748005684905,142.24,176.27,176.12,253.8931]
[1748005685113,5.6737,176.2,176.17,0.04357974]
[1748005685411,0.04282087,176.21,176.17,0.04357974]
[1748005685911,0.04282087,176.21,176.17,7.974e-05]
[1748005686613,5.6743,176.18,176.17,7.974e-05]
[1748005688111,5.6765,176.12,176.06,7.5977]
[1748005688317,142.22,176.18,176.06,1.9197]
[1748005688517,142.22,176.2,176.06,1.9197]
[1748005689314,0.03959822,176.15,176.11,0.03738967]
[1748005690820,5.6762,176.12,176.11,0.03738967]
[1748005691918,5.6762,176.12,176.11,8.967e-05]
[1748005692317,5.68,176.12,176.0,490.44]
[1748005692518,142.24,176.13,176.02,5.6793]
[1748005692718,142.24,176.13,176.0,490.44]
[1748005693218,0.04210013,176.08,176.0,490.44]
[1748005693419,0.04210013,176.08,175.99,3.9017]
[1748005694114,0.04210013,176.08,175.99,9.582]
[1748005694310,0.04210013,176.08,175.99,3.9017]
[1748005695311,5.6782,176.06,176.0,5.6798]
[1748005695810,0.04210013,176.08,175.99,3.9017]
[1748005696005,0.03651618,176.05,175.99,3.9017]
[1748005696207,0.04088911,176.04,175.99,3.9017]
[1748005696407,0.0414918,176.03,175.99,3.9017]
[1748005696619,0.04203461,176.03,175.99,3.9017]
[1748005697016,0.04203461,176.03,175.99,1.9863]
[1748005697216,0.04203461,176.03,175.94,142.28]
[1748005697416,0.04203461,176.03,175.95,1.9442]
[1748005697919,5.72123461,176.03,175.95,1.9442]
[1748005698313,0.04203461,176.03,175.95,1.9442]
[1748005698521,5.6803,176.0,175.95,7.6258]
[1748005698719,0.04322958,175.99,175.95,1.9442]
[1748005698915,0.04282841,175.99,175.95,7.6257]
[1748005699321,0.04282841,175.99,175.95,1.9442]
[1748005699920,0.04282841,175.99,175.94,142.28]
[1748005701422,0.04282841,175.99,175.95,5.6815]
[1748005701626,0.04282841,175.99,175.94,142.28]
[1748005702524,0.04282841,175.99,175.94,147.9618]
[1748005702727,0.04282841,175.99,175.94,142.28]
[1748005702919,3.9199,176.07,175.94,142.28]
[1748005703527,3.9199,176.07,175.95,2.03652653]
[1748005703825,0.04302794,176.03,175.99,0.04108512]
[1748005704528,5.6801,176.0,175.99,0.04108512]
[1748005705430,0.04302794,176.03,175.99,0.04108512]
[1748005705824,5.6795,176.02,175.99,0.04108512]
[1748005706030,0.04302794,176.03,175.99,0.04108512]
[1748005706530,5.6801,176.0,175.99,0.04108512]
[1748005707023,5.68,176.0,175.88,3.8497]
[1748005707223,22.56211074,176.0,175.89,2.0445631]
[1748005707425,2.0141,175.99,175.82,1.9584]
[1748005707727,2.0141,175.99,175.82,3.8251]
[1748005707929,22.56211074,175.96,175.82,5.8557]
[1748005708123,0.03649672,175.91,175.82,5.8557]
[1748005708525,0.03649672,175.91,175.82,2.0306]
[1748005708729,142.34,175.9,175.8,148.0263]
[1748005708921,0.04013601,175.87,175.8,148.0263]
[1748005709629,0.04013601,175.87,175.8,142.34]
[1748005711031,0.04013601,175.87,175.81,5.6861]
[1748005711234,0.04013601,175.87,175.8,142.34]
[1748005711429,0.04013601,175.87,175.76,6.55947204]
[1748005711630,0.03650871,175.83,175.77,1.9409]
[1748005711831,0.03650871,175.83,175.78,142.22]
[1748005712334,0.03650871,175.83,175.82,5.6859]
[1748005712633,0.03650871,175.83,175.81,5.6862]
[1748005712832,0.03650871,175.83,175.78,142.22]
[1748005713833,0.03650871,175.83,175.72,22.56211074]
[1748005714033,0.03650871,175.83,175.74,142.24]
[1748005714327,0.03650871,175.83,175.74,144.2002]
[1748005714535,2.0384,175.95,175.77,22.56211074]
[1748005714832,1.9411,175.98,175.81,22.56211074]
[1748005715032,5.6809,175.98,175.93,5.6821]
[1748005715237,5.19508339,175.99,175.94,142.24]
[1748005715534,0.03840109,175.98,175.95,142.27919753]
[1748005715728,0.03840109,175.98,175.95,142.28322597]
[1748005718326,0.03840109,175.98,175.95,0.04322597]
[1748005718735,5.6813,175.97,175.95,0.04322597]
[1748005718934,0.03840109,175.98,175.95,0.04322597]
[1748005719435,0.03840109,175.98,175.97,5.681]
[1748005719736,3.8711,176.1,175.95,108.02322597]
[1748005719933,3.8711,176.1,175.96,1.9924]
[1748005720237,3.8711,176.1,175.97,142.24]
[1748005720432,5.6797,176.02,175.96,7.6735]
[1748005720633,0.04093012,176.01,175.97,142.27797363]
[1748005720935,5.6805,175.99,175.98,142.24]
[1748005721130,5.6805,175.99,175.97,0.04105141]
[1748005721326,0.04077192,176.01,175.9,5.6833]
[1748005721531,1.9167,176.0,175.91,142.24]
[1748005721834,5.6825,175.93,175.91,142.24]
[1748005722234,1.9167,176.0,175.91,142.22]
[1748005722439,5.6826,175.92,175.91,142.22]
[1748005722932,5.683,175.91,175.9,0.04057564]
[1748005723234,5.683,175.91,175.9,142.26057564]
[1748005723826,0.04205655,175.94,175.84,142.22]
[1748005724035,22.61502752,175.97,175.84,142.22]
[1748005724838,5.6843,175.87,175.84,142.22]
[1748005725037,0.042714,175.87,175.84,142.22]
[1748005725637,0.042714,175.87,175.84,147.9051]
[1748005726734,0.042714,175.87,175.84,142.22]
[1748005727626,5.727214,175.87,175.84,142.22]
[1748005728136,5.727214,175.87,175.82,7.7166]
[1748005728338,5.727214,175.87,175.83,142.24]
[1748005728533,0.042714,175.87,175.82,2.031]
[1748005728841,0.042714,175.87,175.83,142.26]
[1748005729841,0.042714,175.87,175.84,5.685]
[1748005730040,0.042714,175.87,175.83,142.26]
[1748005730332,5.6819,175.95,175.88,5.6839]
[1748005730538,24.64332752,175.99,175.89,142.26]
[1748005731340,0.04191961,175.96,175.92,0.04036043]
[1748005731529,24.64332752,175.99,175.92,6.043e-05]
[1748005731836,5.6823,175.93,175.92,6.043e-05]
[1748005732035,2.0283,175.99,175.92,6.043e-05]
[1748005732544,0.04091508,175.97,175.92,6.043e-05]
[1748005732838,0.04091508,175.97,175.9,1.9481]
[1748005733243,0.04091508,175.97,175.94,5.6818]
[1748005733536,0.04091508,175.97,175.95,142.26]
[1748005734340,5.6814,175.96,175.95,142.26]
[1748005734739,0.04091508,175.97,175.89,491.1]
[1748005735041,1.8449,175.95,175.83,147.21302453]
[1748005735238,0.0371288,175.91,175.83,147.21302453]
[1748005736540,5.6836,175.9,175.85,5.685]
[1748005736736,0.0371288,175.91,175.83,147.21302453]
[1748005737239,0.0371288,175.91,175.86,5.6846]
[1748005737539,5.6836,175.9,175.85,5.6849]
[1748005737749,5.6836,175.9,175.83,142.24]
[1748005737935,0.0371288,175.91,175.83,142.24]
[1748005739238,0.0371288,175.91,175.84,142.26]
[1748005739437,5.72616546,175.89,175.84,147.9453]
[1748005739640,0.04236546,175.89,175.84,142.26]
[1748005740141,0.04236546,175.89,175.85,1.8566]
[1748005740337,5.19508339,176.0,175.85,24.47162752]
[1748005741046,5.6826,175.93,175.89,5.6837]
[1748005741247,5.6826,175.93,175.9,142.26]
[1748005741447,0.03620894,175.93,175.9,142.29850101]
[1748005742143,5.683,175.92,175.9,142.29850101]
[1748005742342,0.03620894,175.93,175.9,142.29850101]
[1748005742755,0.03620894,175.93,175.9,147.98190101]
[1748005743048,0.03620894,175.93,175.9,142.29850101]
[1748005743246,3.9015,176.02,175.9,142.29850101]
[1748005743451,5.19508339,176.04,175.91,109.8608]
[1748005743850,5.19508339,176.04,175.93,22.61502752]
[1748005744351,0.04163664,176.0,175.97,0.03754326]
[1748005744650,5.19508339,176.09,175.98,142.02]
[1748005745344,5.19508339,176.09,176.04,5.6786]
[1748005745541,5.19508339,176.09,176.05,142.02]
[1748005745841,0.03759818,176.08,176.05,142.06172672]
[1748005746650,5.19508339,176.09,176.05,142.06172672]
[1748005746844,5.6782,176.07,176.05,142.06172672]
[1748005747053,9.22038339,176.18,176.05,142.02]